bitfinex/quotes_SOLUSD_20240930
["timestamp","ask_amount","ask_price","bid_price","bid_amount"]
[1727679673439,6.3725,156.93,156.89,28.9069]
[1727679674131,6.3712,156.96,156.9,1.27466864]
[1727679674340,6.3714,156.95,156.91,6.373]
[1727679674548,20.0,156.99,156.89,22.5331]
[1727679674708,6.3719,156.94,156.89,28.9069]
[1727679675620,6.3723,156.93,156.89,22.5331]
[1727679676024,6.3723,156.93,156.89,28.9068]
[1727679676226,6.3719,156.94,156.9,1.27466621]
[1727679676428,6.3719,156.94,156.9,7.64796621]
[1727679676739,6.3711,156.96,156.91,7.64709407]
[1727679676912,6.3711,156.96,156.91,6.3726]
[1727679677821,6.3706,156.97,156.93,6.3721]
[1727679678047,20.0,156.96,156.89,6.5987]
[1727679678328,26.371,156.96,156.92,6.3725]
[1727679678632,6.3714,156.95,156.91,15.9319]
[1727679680325,0.25098,156.97,156.91,15.9319]
[1727679680519,6.3715,156.95,156.91,15.9319]
[1727679681937,6.3711,156.96,156.91,22.3047]
[1727679682143,6.3711,156.96,156.92,7.64701265]
[1727679682825,6.3711,156.96,156.92,6.3725]
[1727679688622,6.3706,156.97,156.93,6.3722]
[1727679688818,20.0,156.97,156.93,7.64655871]
[1727679690044,1.1101149,156.98,156.96,6.3709]
[1727679690217,1.1101149,156.98,156.97,1.27407074]
[1727679690413,6.3691,157.01,156.96,6.3709]
[1727679690635,6.3691,157.01,156.96,7.64492821]
[1727679691643,20.0,157.0,156.96,7.64492821]
[1727679694635,6.3695,157.0,156.96,6.3709]
[1727679694844,6.3699,156.99,156.95,22.2995]
[1727679695930,6.3704,156.98,156.94,6.3046]
[1727679696129,6.3704,156.98,156.94,12.6762]
[1727679696433,6.3698,156.99,156.94,12.6762]
[1727679696957,6.3703,156.98,156.94,6.3046]
[1727679698133,6.3703,156.98,156.94,12.6763]
[1727679698328,6.3703,156.98,156.94,6.3046]
[1727679698839,0.25098,157.01,156.94,6.3046]
[1727679699150,6.3709,156.97,156.94,6.3046]
[1727679699346,6.3715,156.95,156.9,6.4735]
[1727679699530,6.3715,156.95,156.9,12.8469]
[1727679700037,6.3719,156.94,156.9,12.8469]
[1727679706045,44.027864,156.98,156.9,6.4735]
[1727679706245,6.3722,156.93,156.9,6.4735]
[1727679706755,6.3727,156.92,156.89,15.9343]
[1727679706935,6.3723,156.93,156.89,15.9343]
[1727679709151,6.3727,156.92,156.89,15.9343]
[1727679709349,6.3723,156.93,156.89,17.20893374]
[1727679709546,6.3718,156.94,156.89,17.20893374]
[1727679709735,20.12549,156.96,156.89,17.20893374]
[1727679709736,6.3715,156.95,156.91,6.373]
[1727679709942,6.3715,156.95,156.91,7.64748597]
[1727679710730,6.3711,156.96,156.91,1.27448597]
[1727679710937,6.3711,156.96,156.92,6.3725]
[1727679711965,6.3711,156.96,156.91,6.373]
[1727679713662,6.3707,156.97,156.92,7.64701362]
[1727679713964,6.3703,156.98,156.93,6.3721]
[1727679714154,6.3707,156.97,156.93,6.3721]
[1727679714457,31.3116,157.0,156.94,7.64608578]
[1727679714458,6.3702,156.98,156.94,7.64608578]
[1727679714666,6.3702,156.98,156.94,6.3718]
[1727679715241,6.3702,156.98,156.94,7.64601839]
[1727679717665,6.3702,156.98,156.93,15.9301]
[1727679717851,6.3702,156.98,156.93,22.3022]
[1727679719060,15.3877,157.0,156.93,15.9301]
[1727679719241,6.371,156.96,156.93,15.9301]
[1727679719655,6.3707,156.97,156.93,15.9301]
[1727679721662,6.3705,156.98,156.93,22.3022]
[1727679722260,6.3707,156.97,156.93,22.3022]
[1727679722653,20.0,156.96,156.91,6.6403]
[1727679722858,6.3717,156.95,156.91,6.6403]
[1727679723054,6.3717,156.95,156.91,13.0133]
[1727679724470,6.372,156.94,156.91,6.6403]
[1727679725262,6.372,156.94,156.9,15.9333]
[1727679726790,6.372,156.94,156.9,17.20782648]
[1727679728075,6.372,156.94,156.9,22.3067]
[1727679732665,6.3723,156.93,156.88,17.2499]
[1727679732870,0.25098,156.97,156.88,17.2499]
[1727679733183,6.3723,156.93,156.89,6.3737]
[1727679738581,6.3717,156.95,156.9,1.27465975]
[1727679738983,6.3711,156.96,156.91,6.3728]
[1727679739191,21.10777885,156.97,156.93,6.372]
[1727679739480,20.0,156.97,156.94,7.64604778]
[1727679739664,20.0,156.97,156.94,6.3718]
[1727679740084,6.3704,156.98,156.94,6.3718]
[1727679741605,6.3697,157.0,156.95,1.27425116]
[1727679741809,1.10893959,157.02,156.97,6.3706]
[1727679741810,6.3691,157.01,156.97,6.3706]
[1727679741981,6.3686,157.02,156.97,6.3706]
[1727679742303,6.3686,157.02,156.98,7.64414101]
[1727679742804,6.3686,157.02,156.94,10.13361402]
[1727679742805,6.3686,157.02,156.95,1.27390097]
[1727679743095,20.0,157.01,156.97,6.3705]
[1727679743681,20.0,157.01,156.98,1.27390472]
[1727679743990,20.0,157.01,156.97,6.3705]
[1727679744182,20.0,157.01,156.98,1.27390508]
[1727679744378,20.0,157.01,156.98,7.64410508]
[1727679744577,20.0,157.01,156.98,6.3702]
[1727679745108,20.0,157.01,156.97,6.3705]
[1727679746093,26.3691,157.01,156.96,22.2975]
[1727679749279,6.3686,157.02,156.97,1.27403717]
[1727679749486,6.3686,157.02,156.98,6.37]
[1727679752603,6.3686,157.02,156.97,6.3705]
[1727679753583,6.3686,157.02,156.98,1.27390941]
[1727679754082,6.3686,157.02,156.98,7.64410962]
[1727679754289,0.12549,157.03,156.97,6.2409]
[1727679754486,6.3693,157.01,156.97,6.2409]
[1727679754689,20.25098,157.03,156.97,6.2409]
[1727679754889,6.3691,157.01,156.97,6.2409]
[1727679755691,6.3697,157.0,156.95,22.2993]
[1727679759007,6.3697,157.0,156.96,1.2740727]
[1727679759387,20.25098,157.03,156.96,1.2740727]
[1727679759602,6.3691,157.01,156.96,7.6447727]
[1727679761202,6.3694,157.0,156.95,22.2993]
[1727679767684,6.3694,157.0,156.96,1.2740748]
[1727679768605,6.3694,157.0,156.95,22.2993]
[1727679768985,6.3694,157.0,156.96,1.27407557]
[1727679769307,20.0,157.03,156.93,27.58171402]
[1727679769506,20.0,157.02,156.98,6.3699]
[1727679769892,20.0,157.02,156.97,6.3705]
[1727679770095,6.369,157.01,156.97,22.2965]
[1727679770412,35.5891,157.03,156.94,6.3717]
[1727679770599,0.25098,157.0,156.93,17.4481]
[1727679770787,6.371,156.96,156.93,6.5723]
[1727679771200,6.3715,156.95,156.91,15.9322]
[1727679771401,16.17538,157.0,156.9,6.3734]
[1727679771603,6.3719,156.94,156.89,23.2714]
[1727679772708,6.3723,156.93,156.89,6.0218]
[1727679773005,6.3719,156.94,156.89,13.67026149]
[1727679774114,6.3719,156.94,156.89,12.3956]
[1727679774310,20.25098,156.97,156.89,12.3956]
[1727679774508,6.3723,156.93,156.89,12.3956]
[1727679774893,6.3723,156.93,156.89,6.0218]
[1727679775211,6.3727,156.92,156.88,15.9354]
[1727679776109,6.3727,156.92,156.88,23.58433002]
[1727679776415,6.3722,156.93,156.88,23.58433002]
[1727679776913,6.3722,156.93,156.88,22.3096]
[1727679779597,6.3726,156.92,156.88,22.3096]
[1727679784220,20.12549,156.97,156.88,15.9354]
[1727679784221,6.373,156.91,156.88,15.9354]
[1727679784998,6.3727,156.92,156.88,15.9354]
[1727679786300,6.3725,156.93,156.88,22.3094]
[1727679794106,6.3725,156.93,156.89,6.3738]
[1727679797722,6.3728,156.92,156.88,15.9354]
[1727679798613,6.3728,156.92,156.88,22.3096]
[1727679799606,6.3723,156.93,156.88,22.3096]
[1727679799806,6.3723,156.93,156.88,15.9354]
[1727679800008,6.3723,156.93,156.89,6.3737]
[1727679802129,6.3723,156.93,156.89,7.64841098]
[1727679803123,6.3723,156.93,156.89,6.3737]
[1727679804406,6.3721,156.94,156.89,7.64832384]
[1727679805017,20.0,156.97,156.9,22.3536]
[1727679805215,6.3707,156.97,156.91,1.27440318]
[1727679805507,6.3703,156.98,156.93,6.3721]
[1727679805699,6.3703,156.98,156.94,6.3717]
[1727679805912,17.19546571,157.02,156.93,1.27431519]
[1727679806118,6.3697,157.0,156.95,6.3711]
[1727679807124,6.3697,157.0,156.95,12.9673]
[1727679811226,17.02848583,157.05,156.96,1.27411079]
[1727679811431,6.3682,157.03,156.96,28.07691079]
[1727679811642,1.10968583,157.05,156.97,10.13361402]
[1727679811815,1.10968583,157.05,156.98,1.27377353]
[1727679813129,6.3678,157.04,157.0,6.3693]
[1727679814305,6.3678,157.04,156.99,15.9245]
[1727679814612,6.3678,157.04,156.99,22.2942]
[1727679816319,6.3678,157.04,157.0,1.27374735]
[1727679817243,7.47708583,157.05,157.0,7.64274735]
[1727679817533,7.47708583,157.05,157.0,14.03024735]
[1727679818527,7.47708583,157.05,157.01,6.3689]
[1727679818713,7.47708583,157.05,157.02,1.27359349]
[1727679820411,6.3674,157.05,157.02,1.27359349]
[1727679821939,6.3671,157.06,157.02,1.27359349]
[1727679822518,1.10826956,157.07,157.02,1.27359349]
[1727679822825,6.3666,157.07,157.02,6.3685]
[1727679823543,6.3672,157.06,157.01,33.1666]
[1727679825722,6.3672,157.06,157.02,1.27354405]
[1727679828344,6.3666,157.07,157.02,7.64194405]
[1727679829144,6.367,157.06,157.02,7.64194405]
[1727679830218,6.367,157.06,157.02,6.3684]
[1727679833537,6.367,157.06,157.01,26.7977]
[1727679833739,6.3678,157.04,157.01,26.7977]
[1727679833944,6.3678,157.04,157.01,15.9219]
[1727679834446,6.3674,157.05,157.01,15.9219]
[1727679834637,6.3674,157.05,157.01,23.56431101]
[1727679834942,6.3674,157.05,157.01,22.2907]
[1727679835155,6.3674,157.05,157.01,23.56426638]
[1727679835366,6.3674,157.05,157.01,22.2907]
[1727679840463,20.0,157.08,157.01,22.2907]
[1727679840649,6.3671,157.06,157.01,22.2907]
[1727679843253,16.16598,157.09,157.01,15.9219]
[1727679843564,6.3664,157.08,157.03,6.3681]
[1727679843758,6.3664,157.08,157.04,1.27341648]
[1727679844442,6.3666,157.07,157.04,1.27341648]
[1727679844644,6.3666,157.07,157.03,6.3681]
[1727679845944,6.3666,157.07,157.04,1.27342489]
[1727679846144,6.3666,157.07,157.03,6.3681]
[1727679847054,6.3666,157.07,157.01,15.9219]
[1727679847251,6.367,157.06,157.01,22.2908]
[1727679847464,20.0,157.09,156.98,6.3701]
[1727679847465,6.3686,157.02,156.98,6.3701]
[1727679847751,0.25098,157.08,156.99,1.27379694]
[1727679847752,20.0,157.07,156.99,1.27379694]
[1727679847963,20.0,157.07,157.0,6.3693]
[1727679847964,6.3678,157.04,157.0,6.3693]
[1727679848160,6.3678,157.04,157.0,7.64296916]
[1727679848949,6.3674,157.05,157.0,1.27366916]
[1727679849149,6.3674,157.05,157.01,6.3689]
[1727679849957,6.3669,157.07,157.02,7.64204995]
[1727679850866,6.3669,157.07,157.02,6.3684]
[1727679852959,6.3673,157.06,157.01,12.4041]
[1727679856271,6.3673,157.06,157.01,16.9308387]
[1727679856657,6.3667,157.07,157.03,6.3681]
[1727679866186,20.0,157.09,157.02,1.27350552]
[1727679866475,6.3661,157.08,157.04,6.3677]
[1727679869781,6.3661,157.08,157.03,6.3681]
[1727679870983,6.3661,157.08,157.04,7.64103701]
[1727679871781,6.3661,157.08,157.04,6.3676]
[1727679873687,6.3662,157.08,157.04,6.3676]
[1727679878590,6.3662,157.08,157.03,6.368]
[1727679881684,6.3662,157.08,157.02,26.7968]
[1727679881685,6.3668,157.07,157.02,33.1653]
[1727679881888,15.48969,157.09,157.02,22.2895]
[1727679883067,6.367,157.06,157.02,22.2895]
[1727679885807,15.48969,157.09,157.02,23.56303316]
[1727679885990,6.3667,157.07,157.03,6.368]
[1727679886196,6.3667,157.07,157.03,7.64144003]
[1727679886774,6.3663,157.08,157.03,7.64144003]
[1727679887093,6.3663,157.08,157.04,6.3677]
[1727679902395,20.0,157.1,157.05,6.3672]
[1727679902396,26.3657,157.1,157.05,6.3672]
[1727679902577,6.3657,157.09,157.05,6.3672]
[1727679904077,20.0,157.12,157.04,15.9191]
[1727679904300,6.3654,157.1,157.06,6.3669]
[1727679905372,17.47654533,157.15,157.1,6.3653]
[1727679905577,22.52486859,157.17,157.1,6.3653]
[1727679905578,19.21573429,157.17,157.1,6.3653]
[1727679905790,15.9066,157.17,157.1,6.3653]
[1727679906010,6.3638,157.14,157.09,6.3656]
[1727679906183,6.3638,157.14,157.07,10.13361402]
[1727679906385,6.3638,157.14,157.08,1.27297662]
[1727679907078,6.3638,157.14,157.1,6.3653]
[1727679907700,6.3638,157.14,157.08,1.27297662]
[1727679907911,6.3638,157.14,157.09,6.3657]
[1727679908198,6.3657,157.1,157.06,6.306]
[1727679908403,6.3657,157.1,157.07,7.2603155]
[1727679908582,6.3657,157.1,157.06,22.2229]
[1727679909881,6.3657,157.1,157.06,23.49611829]
[1727679910185,6.3657,157.1,157.06,29.86301829]
[1727679911284,6.3657,157.1,157.06,28.5898]
[1727679911683,6.3657,157.09,157.06,6.306]
[1727679912587,6.3654,157.1,157.06,6.306]
[1727679912785,6.3654,157.1,157.06,13.94602316]
[1727679913105,6.365,157.11,157.06,13.94602316]
[1727679913410,6.365,157.11,157.07,6.3665]
[1727679913703,6.365,157.11,157.07,7.63961241]
[1727679916710,6.3645,157.12,157.08,6.366]
[1727679917506,6.3641,157.14,157.09,7.63871315]
[1727679918190,6.3642,157.13,157.09,6.3657]
[1727679919210,6.3642,157.13,157.08,6.366]
[1727679923907,6.3642,157.13,157.07,23.17065279]
[1727679924116,6.3642,157.13,157.09,6.3657]
[1727679925508,6.3637,157.14,157.1,1.27298379]
[1727679928220,6.3637,157.14,157.09,6.3654]
[1727679929219,6.3637,157.14,157.1,1.27289065]
[1727679929429,6.3637,157.14,157.1,7.63799065]
[1727679929626,21.10778606,157.17,157.11,7.63769097]
[1727679929922,6.3626,157.17,157.13,6.3639]
[1727679930110,6.3626,157.17,157.13,7.63655383]
[1727679930295,15.9028,157.21,157.14,7.63635392]
[1727679930495,6.3617,157.19,157.14,7.63635392]
[1727679932103,6.3622,157.18,157.13,22.2738]
[1727679932625,6.3622,157.18,157.14,1.27252636]
[1727679933322,6.3616,157.2,157.15,6.3632]
[1727679933523,6.3619,157.19,157.16,1.27244713]
[1727679934418,6.3619,157.19,157.16,1.27242163]
[1727679935331,6.3619,157.19,157.15,6.3633]
[1727679935822,6.3619,157.19,157.16,1.27241989]
[1727679936318,6.3613,157.2,157.16,1.27241989]
[1727679936828,6.3613,157.2,157.15,6.3633]
[1727679937126,6.3613,157.2,157.16,1.27241972]
[1727679939223,6.3609,157.21,157.16,14.00321972]
[1727679940903,6.3609,157.21,157.16,12.7308]
[1727679941105,20.25098,157.25,157.16,6.368]
[1727679941420,15.7123,157.26,157.18,6.3621]
[1727679941623,15.7123,157.26,157.19,1.27219122]
[1727679941819,15.7123,157.26,157.18,6.3621]
[1727679942328,6.3606,157.22,157.18,6.3621]
[1727679943607,6.3606,157.22,157.17,22.268]
[1727679944106,6.3602,157.23,157.18,31.41107739]
[1727679945130,21.10744652,157.27,157.18,22.28160741]
[1727679945340,6.3597,157.24,157.18,22.28160741]
[1727679945508,6.3602,157.23,157.18,17.2376]
[1727679946230,35.8967,157.27,157.18,10.8758]
[1727679946431,6.3605,157.22,157.18,10.8758]
[1727679946734,6.3601,157.23,157.18,10.8758]
[1727679947046,6.3601,157.23,157.19,1.27214641]
[1727679947412,6.3593,157.25,157.19,7.63374641]
[1727679947734,0.12549,157.28,157.18,10.8758]
[1727679947948,6.3602,157.23,157.18,10.8758]
[1727679949440,20.0,157.27,157.19,1.27209918]
[1727679949642,6.3593,157.25,157.2,6.3612]
[1727679949814,6.3593,157.25,157.21,1.2719742]
[1727679950317,6.3597,157.24,157.18,17.2379]
[1727679951215,6.3597,157.24,157.19,15.9035]
[1727679953044,6.3589,157.26,157.2,32.9187]
[1727679953226,6.3589,157.26,157.2,32.9188]
[1727679953423,6.3593,157.25,157.2,26.5576]
[1727679953623,6.3589,157.26,157.2,32.9189]
[1727679954250,6.3596,157.25,157.2,6.5576]
[1727679959843,6.3596,157.25,157.21,1.27190756]
[1727679960425,20.0,157.29,157.21,6.3608]
[1727679960825,6.3592,157.26,157.2,12.9188]
[1727679961041,20.0,157.29,157.2,6.5576]
[1727679961752,6.3601,157.23,157.2,6.5576]
[1727679962324,15.8958,157.28,157.21,1.27201532]
[1727679962529,6.3593,157.25,157.22,1.27191631]
[1727679962893,6.3593,157.25,157.2,6.5576]
[1727679963439,20.0,157.27,157.2,6.5576]
[1727679963641,6.3601,157.23,157.2,6.5576]
[1727679964656,6.3601,157.23,157.18,26.7806]
[1727679968368,6.3601,157.23,157.19,1.27208208]
[1727679969445,6.3601,157.23,157.18,33.1426]
[1727679970575,6.3601,157.23,157.19,1.27208245]
[1727679971072,6.3597,157.24,157.19,7.63368245]
[1727679978485,1.10795034,157.29,157.2,6.2393]
[1727679978681,7.46595034,157.29,157.23,6.3597]
[1727679978887,7.46595034,157.29,157.24,1.27168642]
[1727679979057,7.46595034,157.29,157.24,7.63108642]
[1727679979257,6.358,157.29,157.24,7.63108642]
[1727679979457,6.7473312,157.3,157.25,6.3592]
[1727679979680,0.3900312,157.3,157.26,7.63033375]
[1727679979897,0.3900312,157.3,157.26,1.27153375]
[1727679982189,6.7473312,157.3,157.26,1.27153375]
[1727679982691,6.3577,157.29,157.24,6.3596]
[1727679983196,0.3900312,157.3,157.23,26.7755]
[1727679983397,6.3589,157.26,157.21,6.3608]
[1727679983770,6.3585,157.27,157.21,6.3608]
[1727679984292,6.359,157.26,157.22,1.27180038]
[1727679984770,6.3596,157.25,157.2,39.3793]
[1727679985094,24.027864,157.27,157.2,6.2393]
[1727679985396,6.3604,157.23,157.2,6.2393]
[1727679985572,6.3604,157.23,157.17,22.2682]
[1727679985766,6.3607,157.22,157.17,22.2682]
[1727679988198,6.3601,157.23,157.18,1.27216496]
[1727679988366,6.3601,157.23,157.18,7.63416496]
[1727679988567,20.0,157.26,157.18,1.27216496]
[1727679988871,20.0,157.26,157.21,6.3605]
[1727679988872,6.3589,157.26,157.21,6.3605]
[1727679989173,6.3589,157.26,157.22,1.27184927]
[1727679990206,6.3589,157.26,157.21,6.3605]
[1727679990986,6.3589,157.26,157.22,1.27185257]
[1727679991480,0.3900312,157.3,157.22,1.27185257]
[1727679991691,20.3900312,157.3,157.22,7.55115257]
[1727679991886,6.3584,157.28,157.23,6.36]
[1727679992113,6.3584,157.28,157.24,1.27180984]
[1727679992426,20.3900312,157.3,157.24,1.27180984]
[1727679992613,6.3581,157.28,157.24,1.27180984]
[1727679993301,6.3581,157.28,157.23,6.36]
[1727679993811,6.3584,157.27,157.23,6.36]
[1727679994602,6.3591,157.26,157.22,6.2793]
[1727679995200,6.3594,157.25,157.22,6.2793]
[1727679997599,36.2839312,157.3,157.23,1.27188761]
[1727679997800,6.3585,157.27,157.23,1.27188761]
[1727679998109,6.3598,157.24,157.22,6.2793]
[1727679998493,20.0,157.28,157.22,6.2793]
[1727679998800,6.3593,157.25,157.22,6.2793]
[1727680002454,20.0,157.28,157.18,22.4426]
[1727680002741,20.0,157.28,157.19,7.63369593]
[1727680002742,6.3597,157.24,157.19,7.63369593]
[1727680003118,6.3593,157.25,157.2,6.3612]
[1727680003308,6.3589,157.26,157.21,7.63265477]
[1727680004035,6.3589,157.26,157.21,6.3607]
[1727680004417,6.3584,157.28,157.23,6.36]
[1727680004734,6.3585,157.27,157.23,6.36]
[1727680004913,6.3585,157.27,157.22,7.63226173]
[1727680005729,6.3589,157.26,157.22,6.3604]
[1727680006129,6.3584,157.28,157.23,7.63156137]
[1727680006524,6.3584,157.28,157.23,6.3597]
[1727680007444,6.3585,157.27,157.23,6.3597]
[1727680008112,20.3900312,157.3,157.22,15.9005]
[1727680008309,6.3589,157.26,157.22,15.9005]
[1727680011139,20.3900312,157.3,157.21,6.3608]
[1727680011345,6.3594,157.25,157.22,7.25150172]
[1727680011516,6.3594,157.25,157.21,7.25150172]
[1727680011859,6.36,157.24,157.19,22.2656]
[1727680012012,15.8975,157.26,157.2,7.25233911]
[1727680012217,6.3601,157.23,157.18,12.8995]
[1727680012432,6.3601,157.23,157.19,13.61414859]
[1727680012645,6.3601,157.23,157.2,7.25254859]
[1727680012842,6.3598,157.24,157.19,6.3616]
[1727680013139,6.3589,157.26,157.21,6.3608]
[1727680013346,6.3585,157.27,157.22,1.27190614]
[1727680013517,6.3585,157.27,157.23,6.36]
[1727680013742,6.3585,157.27,157.24,1.27176974]
[1727680014724,6.3585,157.27,157.23,7.63177007]
[1727680015730,6.3585,157.27,157.24,1.27176996]
[1727680017544,6.3581,157.28,157.24,1.27176996]
[1727680019837,6.3581,157.28,157.25,1.27173831]
[1727680020423,6.3581,157.28,157.24,6.3596]
[1727680021725,6.3581,157.28,157.23,6.36]
[1727680022446,6.3581,157.28,157.24,1.27170582]
[1727680023137,6.3581,157.28,157.23,6.36]
[1727680024152,6.3581,157.28,157.24,1.27170491]
[1727680025148,6.3577,157.29,157.24,7.63110491]
[1727680027164,6.3577,157.29,157.24,6.3594]
[1727680027339,6.3581,157.28,157.24,6.3594]
[1727680027545,0.3900312,157.3,157.23,28.3917]
[1727680029267,6.3586,157.27,157.23,28.3917]
[1727680029478,6.359,157.26,157.23,6.1321]
[1727680029680,0.3900312,157.3,157.21,10.8758]
[1727680029681,6.3594,157.25,157.21,10.8758]
[1727680029843,6.3594,157.25,157.21,6.3608]
[1727680030167,6.3594,157.25,157.22,1.27187915]
[1727680030952,6.3589,157.26,157.22,1.27187915]
[1727680032678,16.0895,157.28,157.19,6.4736]
[1727680032870,6.3605,157.22,157.19,6.4736]
[1727680033038,6.3601,157.24,157.19,12.8351]
[1727680035958,6.3601,157.24,157.2,1.2720549]
[1727680036843,6.3588,157.27,157.2,1.2720549]
[1727680037050,6.359,157.26,157.21,6.3609]
[1727680037270,6.359,157.26,157.22,1.2719125]
[1727680037468,16.0895,157.28,157.22,1.2719125]
[1727680037771,6.3585,157.27,157.22,7.6323125]
[1727680038343,6.3581,157.28,157.23,6.3599]
[1727680038548,6.3581,157.28,157.24,1.27176598]
[1727680039071,6.3581,157.28,157.23,6.3599]
[1727680043182,6.3581,157.28,157.24,6.3596]
[1727680043354,6.3581,157.28,157.22,0.12549]
[1727680043355,0.3900312,157.3,157.25,1.2716968]
[1727680043550,0.3900312,157.3,157.25,6.3592]
[1727680043551,6.7473312,157.3,157.25,6.3592]
[1727680043877,6.7473312,157.3,157.24,6.3596]
[1727680043878,6.3578,157.29,157.24,6.3596]
[1727680048980,6.3581,157.28,157.23,22.2595]
[1727680050281,0.3900312,157.3,157.23,15.8995]
[1727680050282,6.3586,157.27,157.23,15.8995]
[1727680052874,6.3586,157.27,157.23,22.2595]
[1727680053066,6.358,157.29,157.23,22.2595]
[1727680053792,6.3581,157.28,157.23,22.2595]
[1727680056289,6.3577,157.29,157.24,6.3594]
[1727680057793,0.3900312,157.3,157.23,15.8995]
[1727680057976,6.3591,157.26,157.22,10.8758]
[1727680058294,6.3591,157.26,157.21,6.3605]
[1727680058592,6.3594,157.25,157.21,6.3605]
[1727680060284,6.3589,157.26,157.21,6.3605]
[1727680061575,6.3589,157.26,157.22,7.63219679]
[1727680061776,6.3589,157.26,157.22,6.3603]
[1727680061982,6.3582,157.28,157.24,6.3596]
[1727680063187,6.3582,157.28,157.25,1.27171273]
[1727680063491,6.3577,157.29,157.25,1.27171273]
[1727680063702,6.3577,157.29,157.25,7.63091273]
[1727680064172,6.3577,157.29,157.25,6.3592]
[1727680065507,6.3577,157.29,157.26,1.2716469]
[1727680066392,6.3577,157.29,157.25,6.3592]
[1727680071917,0.3900312,157.3,157.26,1.27165355]
[1727680073302,0.3900312,157.3,157.27,6.3584]
[1727680073506,0.3900312,157.3,157.24,6.071]
[1727680073804,0.3900312,157.3,157.26,6.3588]
[1727680074202,0.3900312,157.3,157.24,6.071]
[1727680074526,0.3900312,157.3,157.2,6.6625]
[1727680074694,20.3900312,157.3,157.2,6.6625]
[1727680075808,20.3900312,157.3,157.21,20.0]
[1727680076117,20.3900312,157.3,157.2,6.6625]
[1727680076118,6.3589,157.26,157.23,15.8999]
[1727680076404,6.3594,157.25,157.2,28.9263]
[1727680077808,20.3900312,157.3,157.21,7.63262991]
[1727680078017,6.3589,157.26,157.21,7.63262991]
[1727680078904,6.3589,157.26,157.21,6.3607]
[1727680079114,6.3593,157.25,157.2,28.9263]
[1727680079409,6.3593,157.25,157.21,6.3609]
[1727680080113,6.3589,157.26,157.22,1.27189178]
[1727680080292,6.3589,157.26,157.22,1.27189886]
[1727680083779,6.3589,157.26,157.21,6.3609]
[1727680083931,6.3589,157.26,157.22,1.27190152]
[1727680084733,6.3589,157.26,157.21,6.3609]
[1727680086503,20.3900312,157.3,157.2,15.9029]
[1727680086504,6.3597,157.24,157.2,15.9029]
[1727680087524,6.3597,157.24,157.2,22.2641]
[1727680087903,6.3593,157.25,157.2,22.2641]
[1727680088899,6.3593,157.25,157.21,6.3608]
[1727680089100,6.3593,157.25,157.22,1.27195162]
[1727680090524,6.3593,157.25,157.21,6.3608]
[1727680093319,6.3601,157.23,157.19,6.3613]
[1727680094832,38.0218,157.27,157.17,22.2678]
[1727680095009,20.0,157.26,157.17,22.2678]
[1727680095212,21.3773,157.21,157.17,15.9057]
[1727680095408,6.3613,157.2,157.17,15.9057]
[1727680095727,6.3617,157.19,157.12,6.3921]
[1727680096930,6.3617,157.19,157.13,20.0]
[1727680097130,6.3617,157.19,157.14,6.3636]
[1727680098023,15.0163,157.21,157.13,6.364]
[1727680098237,6.363,157.16,157.12,6.3644]
[1727680098539,6.363,157.16,157.11,15.9121]
[1727680099027,6.3625,157.17,157.12,6.3644]
[1727680101015,15.0163,157.21,157.14,6.3637]
[1727680101316,6.3618,157.19,157.14,6.3637]
[1727680103141,6.3621,157.18,157.14,6.3637]
[1727680103316,6.3621,157.18,157.13,15.9096]
[1727680103521,6.3628,157.17,157.13,15.9096]
[1727680103729,20.0,157.2,157.09,24.027864]
[1727680103930,6.3631,157.16,157.12,6.3645]
[1727680104839,6.3625,157.17,157.12,6.3645]